{"text_format":"1","workbook":"xlsx","n_sheets":6,"sheets":["誓約書","様式 (2)","DL","説明","一時預かり①(基本）","一時預かり②(点検表）"],"not_rendered":{"charts":0,"images":0,"macros":1,"external_links":0,"defined_names":8,"comments":0,"pivot_tables":0},"unopened":[],"bounds":{"document_bytes":16777216,"sheet_cells":100000,"rows_first":2000,"rows_last":500,"rows_between":2000,"halvings":0,"cell_chars":16384,"cell_head_chars":4096},"cells_cut":0,"cells_raw":0,"read":"whole","date_system":"1900"}

{"sheet":"誓約書","index":0,"n_rows":27,"n_cols":42,"rows_kept":27,"cut":false,"hidden":false,"merged":[[26,36,26,40],[25,3,25,35],[26,3,26,35],[19,1,20,42],[0,0,0,43],[2,33,2,34],[2,36,2,37],[2,39,2,40],[25,36,25,40],[8,24,8,39],[11,24,11,39],[14,24,14,39],[17,24,17,39],[5,2,5,25]]}
["令和６年度チェックリストの記載内容に係る誓約書\n【一時預かり事業】\n※保育所・認定こども園以外\n（地域型保育事業所、認可外保育施設、交流施設・利便性の高い施設等）\n"]
[]
[null,null,null,null,null,null,null,null,null,null,null,null,null,null,null,null,null,null,null,null,null,null,null,null,null,null,null,null,null,null,"令和",null,null,6,null,"年",null,null,"月",null,null,"日"]
[]
[null,"兵庫県知事　様"]
[]
[]
[]
[null,null,null,null,null,null,null,null,null,null,null,null,null,null,"法人名："]
[]
[]
[null,null,null,null,null,null,null,null,null,null,null,null,null,null,"代表者の職氏名："]
[]
[]
[null,null,null,null,null,null,null,null,null,null,null,null,null,null,"事業所名："]
[]
[]
[null,null,null,null,null,null,null,null,null,null,null,null,null,null,"記入担当者の職氏名："]
[]
[null,"　令和６年度チェックリスト【一時預かり事業】を提出するにあたり、当\n\n法人は、記載項目、記載事項に漏れがないことを確認するとともに、記載\n\n内容が正確であることを十分に調査・確認のうえ作成しており、すべての\n\n記載内容が真実かつ適正であることを誓約します。"]
[]
[]
[]
[]
[]
[null,null,null,"◇ 添付書類の確認（次の資料を提出してください。）",null,null,null,null,null,null,null,null,null,null,null,null,null,null,null,null,null,null,null,null,null,null,null,null,null,null,null,null,null,null,null,null,"提出(添付)チェック欄"]
[null,null,null,"利用リーフレット、ホームページの写し等（利用方法・料金、開所時間等保護者への周知文書）"]

{"sheet":"様式 (2)","index":1,"n_rows":193,"n_cols":46,"rows_kept":193,"cut":false,"hidden":true,"merged":[[129,37,129,39],[129,41,129,43],[123,34,123,35],[124,34,124,35],[125,34,125,35],[126,34,126,35],[127,34,127,35],[129,18,129,35],[119,22,119,25],[120,26,120,27],[119,26,119,33],[126,18,126,21],[127,18,127,21],[128,18,128,21],[120,34,120,35],[119,34,119,41],[121,34,121,35],[122,34,122,35],[7,16,7,35],[8,16,8,35],[9,16,9,35],[31,16,31,34],[46,18,46,20],[47,20,47,22],[48,20,48,22],[30,17,30,24],[10,16,10,35],[11,16,11,35],[26,21,26,22],[25,17,25,20],[18,21,18,22],[19,21,19,22],[24,23,24,25],[22,23,22,25],[23,23,23,25],[18,23,18,25],[19,23,19,25],[18,26,18,28],[18,29,18,31],[18,17,18,20],[21,29,21,31],[24,32,24,34],[7,37,7,39],[8,37,8,39],[9,37,9,39],[10,37,10,39],[11,37,11,39],[12,17,12,34],[30,37,30,39],[30,25,30,27],[7,41,7,43],[8,41,8,43],[9,41,9,43],[10,41,10,43],[11,41,11,43],[30,41,30,43],[25,32,25,34],[18,32,18,34],[19,32,19,34],[20,32,20,34],[15,32,15,34],[16,29,16,31],[16,32,16,34],[26,23,26,25],[25,21,25,22],[26,17,26,20],[31,41,31,43],[48,24,48,31],[45,10,46,14],[44,17,44,33],[45,17,45,33],[41,17,41,33],[37,17,37,33],[38,17,38,33],[39,17,39,33],[40,17,40,33],[31,37,31,39],[34,17,34,33],[113,28,113,30],[191,17,191,33],[192,17,192,33],[55,22,55,24],[56,22,56,24],[121,18,121,21],[122,18,122,21],[123,18,123,21],[124,18,124,21],[125,18,125,21],[187,17,187,33],[181,17,181,33],[182,17,182,33],[188,17,188,33],[189,17,189,33],[190,17,190,33],[183,17,183,33],[184,17,184,33],[185,17,185,33],[55,18,55,20],[56,25,56,28],[114,28,114,30],[121,26,121,27],[186,17,186,33],[175,17,175,33],[176,17,176,33],[177,17,177,33],[178,17,178,33],[179,17,179,33],[180,17,180,33],[169,17,169,33],[170,17,170,33],[171,17,171,33],[172,17,172,33],[173,17,173,33],[174,17,174,33],[163,17,163,33],[164,17,164,33],[165,17,165,33],[166,17,166,33],[167,17,167,33],[168,17,168,33],[157,17,157,33],[158,17,158,33],[159,17,159,33],[160,17,160,33],[161,17,161,33],[162,17,162,33],[151,17,151,33],[152,17,152,33],[153,17,153,33],[154,17,154,33],[155,17,155,33],[156,17,156,33],[145,17,145,33],[146,17,146,33],[147,17,147,33],[148,17,148,33],[149,17,149,33],[150,17,150,33],[139,17,139,33],[140,17,140,33],[141,17,141,33],[142,17,142,33],[143,17,143,33],[144,17,144,33],[136,17,136,33],[137,17,137,33],[138,17,138,33],[130,18,130,21],[131,18,131,21],[132,18,132,21],[133,18,133,21],[104,17,104,33],[108,17,108,33],[109,17,109,33],[111,31,111,32],[105,17,105,33],[106,17,106,33],[107,17,107,33],[126,26,126,27],[127,26,127,27],[111,28,111,30],[111,20,111,27],[120,18,120,21],[119,18,119,21],[122,26,122,27],[123,26,123,27],[112,17,113,19],[114,17,114,19],[124,26,124,27],[125,26,125,27],[113,20,113,27],[98,17,98,33],[99,17,99,33],[100,17,100,33],[101,17,101,33],[102,17,102,33],[103,17,103,33],[92,17,92,33],[93,17,93,33],[94,17,94,33],[95,17,95,33],[96,17,96,33],[97,17,97,33],[88,17,88,33],[89,17,89,33],[90,17,90,33],[91,17,91,33],[84,17,84,33],[78,17,78,33],[79,17,79,33],[80,17,80,33],[81,17,81,33],[85,17,85,33],[83,17,83,33],[68,17,68,33],[69,17,69,33],[70,17,70,33],[71,17,71,33],[72,17,72,33],[73,17,73,33],[86,17,86,33],[87,17,87,33],[62,17,62,33],[63,17,63,33],[64,17,64,33],[65,17,65,33],[66,17,66,33],[67,17,67,33],[53,17,53,33],[45,4,46,8],[49,18,49,22],[50,20,50,22],[50,24,50,26],[50,28,50,30],[51,20,51,22],[51,24,51,31],[53,4,53,8],[15,29,15,31],[14,23,14,28],[14,29,14,34],[17,29,17,31],[17,32,17,34],[26,26,26,28],[26,29,26,31],[21,26,21,28],[22,26,22,28],[22,29,22,31],[23,26,23,28],[23,29,23,31],[24,26,24,28],[24,29,24,31],[21,32,21,34],[22,32,22,34],[26,32,26,34],[23,32,23,34],[25,23,25,25],[19,26,19,28],[19,29,19,31],[20,26,20,28],[20,29,20,31],[54,17,54,27],[13,17,15,22],[21,17,21,20],[21,21,21,22],[20,23,20,25],[21,23,21,25],[13,23,13,28],[16,17,16,20],[15,23,15,25],[17,17,17,20],[16,21,16,22],[17,21,17,22],[16,23,16,25],[17,23,17,25],[16,26,16,28],[17,26,17,28],[19,17,19,20],[20,17,20,20],[23,17,23,20],[24,17,24,20],[20,21,20,22],[22,17,22,20],[35,17,35,33],[36,17,36,33],[112,20,112,27],[114,20,114,27],[112,28,112,30],[65,4,65,8],[67,4,67,8],[98,4,98,8],[99,4,99,8],[97,4,97,8],[94,4,94,8],[95,4,95,8],[96,4,96,8],[89,4,89,8],[90,4,90,8],[104,4,104,8],[105,4,105,8],[74,17,74,33],[75,17,75,33],[76,17,76,33],[77,17,77,33],[82,17,82,33],[107,4,107,8],[100,4,100,8],[102,4,102,8],[103,4,103,8],[146,10,146,14],[119,4,120,8],[68,4,68,8],[70,4,70,8],[71,4,71,8],[72,4,72,8],[73,4,73,8],[91,4,91,8],[92,4,92,8],[75,4,75,8],[84,4,84,8],[76,4,76,8],[78,4,78,8],[79,4,79,8],[80,4,80,8],[93,4,93,8],[85,4,85,8],[86,4,86,8],[87,4,87,8],[88,4,88,8],[81,4,81,8],[82,4,82,8],[74,4,74,8],[106,4,106,8],[144,4,144,8],[145,4,145,8],[110,4,110,8],[137,4,137,8],[138,4,138,8],[139,4,139,8],[140,4,140,8],[141,4,141,8],[109,4,109,8],[136,4,136,8],[151,4,151,8],[153,4,153,8],[154,4,154,8],[155,4,155,8],[147,4,147,8],[148,4,148,8],[149,4,149,8],[150,4,150,8],[160,4,160,8],[156,4,156,8],[157,4,157,8],[158,4,158,8],[159,4,159,8],[176,4,176,8],[179,4,179,8],[180,4,180,8],[181,4,181,8],[172,4,172,8],[173,4,173,8],[174,4,174,8],[161,4,161,8],[162,4,162,8],[163,4,163,8],[175,4,175,8],[168,4,168,8],[169,4,169,8],[170,4,170,8],[171,4,171,8],[164,4,164,8],[165,4,165,8],[166,4,166,8],[167,4,167,8],[192,4,192,8],[4,1,4,8],[187,4,187,8],[188,4,188,8],[189,4,189,8],[190,4,190,8],[182,4,182,8],[183,4,183,8],[75,10,75,14],[76,10,76,14],[78,10,78,14],[79,10,79,14],[67,10,67,14],[69,10,69,14],[89,10,89,14],[80,10,80,14],[81,10,81,14],[82,10,82,14],[84,10,84,14],[70,10,70,14],[71,10,71,14],[72,10,72,14],[184,4,184,8],[185,4,185,8],[0,0,0,45],[1,34,1,38],[43,10,43,14],[44,10,44,14],[53,10,53,14],[1,39,1,45],[34,4,34,8],[41,4,41,8],[43,4,43,8],[44,4,44,8],[4,10,4,14],[4,15,4,43],[31,4,31,8],[13,29,13,34],[15,26,15,28],[22,21,22,22],[23,21,23,22],[24,21,24,22],[11,10,13,14],[7,10,9,14],[7,4,9,8],[30,28,30,31],[25,26,25,28],[25,29,25,31],[137,10,137,14],[152,10,152,14],[177,11,177,14],[94,10,94,14],[95,10,95,14],[96,10,96,14],[97,10,97,14],[119,10,120,14],[139,10,139,14],[109,10,109,14],[110,10,110,14],[136,10,136,14],[138,10,138,14],[140,10,140,14],[144,10,144,14],[145,10,145,14],[147,10,147,14],[141,10,141,14],[143,10,143,14],[142,10,142,14],[153,10,153,14],[154,10,154,14],[99,10,99,14],[100,10,100,14],[68,10,68,14],[77,10,77,14],[83,10,83,14],[108,10,108,14],[105,10,105,14],[102,10,102,14],[103,10,103,14],[104,10,104,14],[90,10,90,14],[91,10,91,14],[106,10,106,14],[107,10,107,14],[73,10,73,14],[74,10,74,14],[101,10,101,14],[98,10,98,14],[85,10,85,14],[92,10,92,14],[93,10,93,14],[86,10,86,14],[87,10,87,14],[88,10,88,14],[155,10,155,14],[156,10,156,14],[148,10,148,14],[151,10,151,14],[150,10,150,14],[149,10,149,14],[161,10,161,14],[162,10,162,14],[163,10,163,14],[164,10,164,14],[157,10,157,14],[158,10,158,14],[159,10,159,14],[160,10,160,14],[169,10,169,14],[170,10,170,14],[171,10,171,14],[172,10,172,14],[165,10,165,14],[166,10,166,14],[167,10,167,14],[168,10,168,14],[179,10,179,14],[180,10,180,14],[181,10,181,14],[182,10,182,14],[173,10,173,14],[174,10,174,14],[175,10,175,14],[176,10,176,14],[178,11,178,14],[188,10,188,14],[189,10,189,14],[190,10,190,14],[192,10,192,14],[183,10,183,14],[184,10,184,14],[185,10,185,14],[187,10,187,14],[186,10,186,14],[191,10,191,14],[66,10,66,14],[3,1,3,14],[31,10,31,14],[63,10,63,14],[64,10,64,14],[62,10,62,14],[65,10,65,14],[34,10,34,14],[41,10,41,14],[54,4,54,8],[54,10,54,14],[62,4,62,8],[63,4,63,8],[64,4,64,8]]}
["平成２５年度保育所チェックリスト"]
[null,null,null,null,null,null,null,null,null,null,null,null,null,null,null,null,null,null,null,null,null,null,null,null,null,null,null,null,null,null,null,null,null,null,"（　保育所名：",null,null,null,null,"　　　　　　）"]
[]
[null,"児童福祉行政指導監査実施要綱（厚生労働省）等"]
[null,"国報告 番号･事項\n(事項名は保育用に一部加工している)",null,null,null,null,null,null,null,null,"着眼点",null,null,null,null,"チェック項目"]
["　１　適切な入所者処遇の確保の状況"]
[null,null,null,null,"○社会福祉施設共通事項"]
[null,1,"-",3,"給食における必要な栄養所要量の確保状況",null,null,null,null,"・","適切な給食を提供するよう努められているか。",null,null,null,null,null,"・　必要栄養量を確保するため、計画的に献立を作成しているか。",null,null,null,null,null,null,null,null,null,null,null,null,null,null,null,null,null,null,null,null,"はい",null,null,null,"いいえ"]
[null,null,null,null,null,null,null,null,null,"・",null,null,null,null,null,null,"・　予定献立と実施献立で相違はないか。",null,null,null,null,null,null,null,null,null,null,null,null,null,null,null,null,null,null,null,null,"はい",null,null,null,"いいえ"]
[null,null,null,null,null,null,null,null,null,null,null,null,null,null,null,null,"・　給食担当者は講習会等により知能技能の向上に努めているか。",null,null,null,null,null,null,null,null,null,null,null,null,null,null,null,null,null,null,null,null,"はい",null,null,null,"いいえ"]
[null,null,null,null,null,null,null,null,null,null,null,null,null,null,null,null,"・　保健所の助言等を得ているか。",null,null,null,null,null,null,null,null,null,null,null,null,null,null,null,null,null,null,null,null,"はい",null,null,null,"いいえ"]
[null,null,null,null,null,null,null,null,null,null,"必要な栄養所要量が確保されているか。",null,null,null,null,null,"・　入所児の実態に合わせた栄養給与目標を定めているか。",null,null,null,null,null,null,null,null,null,null,null,null,null,null,null,null,null,null,null,null,"はい",null,null,null,"いいえ"]
[null,null,null,null,null,null,null,null,null,null,null,null,null,null,null,null,null,"年齢別栄養目標"]
[null,null,null,null,null,null,null,null,null,null,null,null,null,null,null,null,null,null,null,null,null,null,null,"１～2歳児",null,null,null,null,null,"3歳児以上"]
[null,null,null,null,null,null,null,null,null,null,null,null,null,null,null,null,null,null,null,null,null,null,null,"主食･副食･おやつ",null,null,null,null,null,"副食･おやつ"]
[null,null,null,null,null,null,null,null,null,null,null,null,null,null,null,null,null,null,null,null,null,null,null,"目標",null,null,"実績",null,null,"目標",null,null,"実績"]
[null,null,null,null,null,null,null,null,null,null,null,null,null,null,null,null,null,"ｴﾈﾙｷﾞｰ",null,null,null,"kcal"]
[null,null,null,null,null,null,null,null,null,null,null,null,null,null,null,null,null,"たんぱく質",null,null,null,"g"]
[null,null,null,null,null,null,null,null,null,null,null,null,null,null,null,null,null,"脂肪ｴﾈﾙｷﾞｰ比",null,null,null,"％"]
[null,null,null,null,null,null,null,null,null,null,null,null,null,null,null,null,null,"ｶﾙｼｳﾑ",null,null,null,"mg"]
[null,null,null,null,null,null,null,null,null,null,null,null,null,null,null,null,null,"鉄",null,null,null,"mg"]
[null,null,null,null,null,null,null,null,null,null,null,null,null,null,null,null,null,"ﾋﾞﾀﾐﾝ A",null,null,null,"μgRE"]
[null,null,null,null,null,null,null,null,null,null,null,null,null,null,null,null,null,"ﾋﾞﾀﾐﾝ B1",null,null,null,"mg"]
[null,null,null,null,null,null,null,null,null,null,null,null,null,null,null,null,null,"ﾋﾞﾀﾐﾝ B2",null,null,null,"mg"]
[null,null,null,null,null,null,null,null,null,null,null,null,null,null,null,null,null,"ﾅｲｱｼﾝ",null,null,null,"mgNE"]
[null,null,null,null,null,null,null,null,null,null,null,null,null,null,null,null,null,"ﾋﾞﾀﾐﾝ C",null,null,null,"mg"]
[null,null,null,null,null,null,null,null,null,null,null,null,null,null,null,null,null,"ﾋﾞﾀﾐﾝ D",null,null,null,"μg"]
[null,null,null,null,null,null,null,null,null,null,null,null,null,null,null,null,"・    アレルギー等を有する児童がいるか。"]
[null,null,null,null,null,null,null,null,null,null,null,null,null,null,null,null,"（いる場合）献立への配慮をしているか。"]
[null,null,null,null,null,null,null,null,null,null,null,null,null,null,null,null,"・    おやつは、甘味品や菓子類に偏っていないか。"]
[null,null,null,null,null,null,null,null,null,null,null,null,null,null,null,null,null,"おやつの手作り状況　　週",null,null,null,null,null,null,null,null,null,null,"回程度",null,null,null,null,null,null,null,null,"はい",null,null,null,"いいえ"]
[null,1,"-",39,"３歳未満児に対する献立、調理(離乳食等)等の配慮の状況",null,null,null,null,null,"３歳未満児に対する献立、調理(離乳食等)、食事の環境などについての配慮がされているか。",null,null,null,null,null,"・離乳食、３歳未満児食、３歳以上児に分けて献立が作られているか。",null,null,null,null,null,null,null,null,null,null,null,null,null,null,null,null,null,null,null,null,"はい",null,null,null,"いいえ"]
[]
[]
[null,1,"-",4,"嗜好調査、残食調査、検食等の実施及びその反映状況",null,null,null,null,"・","嗜好調査、残食(菜)調査、検食等が適切になされており、その結果等を献立に反映するなど、工夫がなされているか。",null,null,null,null,null,null,"・ 児童の嗜好、残飯調査等を行っているか。"]
[null,null,null,null,null,null,null,null,null,null,null,null,null,null,null,null,null,"・ 給食材料の納品に当たり、検収の事務処理は適正か。\n"]
[null,null,null,null,null,null,null,null,null,null,null,null,null,null,null,null,null,"・ 調理業務の委託を行っているか。"]
[null,null,null,null,null,null,null,null,null,null,null,null,null,null,null,null,null,"　　（委託業者名：　　　　　　　　　　　）"]
[]
[]
[]
[null,1,"-",5,"調理内容の状況",null,null,null,null,null,"児童の身体状態に合わせた調理内容になっているか。"]
[]
[null,1,"-",6,"食事時間の状況",null,null,null,null,null,"食事の時間は、家族生活に近い時間となっているか。"]
[null,1,"-",7,"保存食の保管状況及び原材料の保存状況",null,null,null,null,null,"保存食は、一定期間(2週間)適切な方法(冷凍保存)で保管されているか。また、原材料についてもすべて保存されているか。",null,null,null,null,null,null,"・ 献立及び原材料について保存食として-20℃以下で2週間以上　保存しているか"]
[null,1,"-",8,"食器類の衛生管理の状況",null,null,null,null,null,"食器類の衛生管理に努めているか。",null,null,null,null,null,null,"＜食器消毒の状況＞"]
[null,null,null,null,null,null,null,null,null,null,null,null,null,null,null,null,null,null,"回数"]
[null,null,null,null,null,null,null,null,null,null,null,null,null,null,null,null,null,null,null,null,"毎食後"]
[null,null,null,null,null,null,null,null,null,null,null,null,null,null,null,null,null,null,null,null,"その他",null,null,"（",null,null,null,null,null,null,null,null,null,"）"]
[null,null,null,null,null,null,null,null,null,null,null,null,null,null,null,null,null,null,"消毒方法"]
[null,null,null,null,null,null,null,null,null,null,null,null,null,null,null,null,null,null,null,null,"消毒液",null,null,null,"煮沸",null,null,null,"蒸気"]
[null,null,null,null,null,null,null,null,null,null,null,null,null,null,null,null,null,null,null,null,"その他",null,null,"（",null,null,null,null,null,null,null,null,null,"）"]
[]
[null,1,"-",9,"給食関係者の検便の実施状況",null,null,null,null,null,"給食関係者の検便は適切に実施されているか。"]
[null,1,"-",37,"給食材料の適切な用意・保管の状況",null,null,null,null,null,"給食材料が適切に用意され、保管されているか。",null,null,null,null,null,null,"＜食品保管＞"]
[null,null,null,null,null,null,null,null,null,null,null,null,null,null,null,null,null,null,"冷蔵庫",null,null,null,"温度計",null,null,null,null,"有",null,null,"無"]
[null,null,null,null,null,null,null,null,null,null,null,null,null,null,null,null,null,null,null,null,null,null,"庫内温度",null,null,null,null,null,null,"℃"]
[]
[]
[]
[]
[]
[null,1,"-",38,"給食日誌の記録及び脱脂粉乳の受払記録の実施状況",null,null,null,null,null,"給食日誌の記録及び脱脂粉乳の受払記録が適正に行われているか。"]
[null,1,"-",40,"食中毒対策の実施状況",null,null,null,null,null,"食中毒対策が適切に行われているか。"]
[null,1,"-",41,"調理の業務委託に係る契約内容等の遵守の状況",null,null,null,null,null,"調理の業務委託が行われている場合、契約内容等が遵守されているか。"]
[null,1,"-",11,"入所者の状態に応じた排泄及びおむつ交換の実施状況",null,null,null,null,null,"入所者の状態に応じた排泄及びおむつ交換が適切に行われているか。"]
[null,null,null,null,null,null,null,null,null,null,"排泄の自立についてその努力がなされているか。 トイレ等は入所者の特性に応じた工夫がなされているか。また、換気、保温及び入所者のプライバシーの確保に配慮がなされているか。"]
[null,1,"-",12,"衛生的な被服及び寝具の確保の状況",null,null,null,null,null,"衛生的な被服及び寝具が確保されるよう努めているか。"]
[null,1,"-",13,"定期の健康診断、衛生管理及び感染症等への対応状況",null,null,null,null,null,"健康診断の実施、結果の記録及び保管が適切に行われているか。"]
[null,null,null,null,null,null,null,null,null,null,"定期の健康診断、衛生管理及び感染症等に対する対策は適切に行われているか。"]
[null,1,"-",14,"必要な医師、嘱託医の設置状況及び必要な医学的管理の状況"]
[null,1,"-",16,"保護者からの相談に対する援助体制の確保の状況",null,null,null,null,null,"家族との連携に積極的に努めているか。また、入所者や家族からの相談に応じる体制がとられているか。相談に対して適切な助言、援助が行われているか。"]
[null,1,"-",17,"苦情受付窓口の設置など苦情解決処理への対応状況",null,null,null,null,null,"苦情を受け付けるための窓口を設置するなど苦情解決に適切に対応しているか。"]
[null,1,"-",18,"実施機関との連携状況",null,null,null,null,null,"実施機関との連携が図られているか。"]
[null,null,null,null,"○児童福祉施設事項"]
[null,null,null,null,"（児童入所施設）"]
[null,1,"-",19,"子どもの権利の尊重、意見等をくみ取る仕組みの状況",null,null,null,null,null,"施設長が子どもの権利擁護や子どもの指導、職員の管理、危機管理に関して十分な見識を有し、適切に指導・監督ができているか。"]
[null,null,null,null,null,null,null,null,null,null,"子ども一人一人の権利を尊重し、その意見や訴えをくみ取る仕組みが設けられているか。"]
[null,1,"-",20,"懲戒権限の濫用及び被措置児童等虐待防止の取組状況"]
["  ",1,"-",21,"専門的知識や援助技術の習得など職員の資質向上への取組状況",null,null,null,null,null,"健全な環境のもとで、社会福祉事業に関する熱意及び能力を有する職員による適切な運営を行うよう務めているか。"]
[null,1,"-",22,"施設長の見識、適切な指導・監督の実施状況"]
[null,1,"-",23,"子どもの事件や事故防止、健康管理に関する必要な措置の状況",null,null,null,null,null,"子どもの生命を守り、安全を確保するために、事件や事故防止、健康管理に関して必要な措置が講じられているか。"]
[null,1,"-",24,"個々の子どもの特性等に応じた生活指導等適切な指導・援助の実施状況",null,null,null,null,null,"個々の子どもの特性や家庭状況に応じた生活指導、職業指導、家庭復帰又は自立支援に向けた適切な指導・援助が行われているか。"]
[null,null,null,null,null,null,null,null,null,null,"個々の子どもの特性に応じた支援を行うための専門的知識や援助技術の習得など職員の資質向上に努めているか。"]
[null,1,"-",25,"子どもの指導・援助の際の必要に応じた児童相談所等関係機関との連携状況",null,null,null,null,null,"子どもの指導・援助の際に、必要に応じ児童相談所等関係機関との連携が適切に行われているか。"]
[null,1,"-",null,"（保育所）"]
[null,1,"-",26,"開所・閉所時間、保育時間、開設日数の状況",null,null,null,null,null,"開所・閉所時間、保育時間、開設日数が適切に設けられているか。"]
[null,1,"-",27,"入所児童の年齢制限の状況",null,null,null,null,null,"入所児童の年齢制限を行つていないか。"]
[null,1,"-",28,"保育所保育指針を踏まえた各保育所の実情に応じた適切な保育の実施状況",null,null,null,null,null,"保育所保育指針に規定される保育の内容に係る基本原則に関する事項を踏まえ、各保育所の実情に応じて適切な保育が行われているか。"]
[null,1,"-",29,"保育課程を編成し、それに基づく指導計画の作成状況",null,null,null,null,null,"保育課程を編成し、それに基づく指導計画が作成されているか。"]
[null,1,"-",30,"保育所児童保育要録の作成状況",null,null,null,null,null,"保育の記録や自己評価に基づいて、保育所児童保育要録が作成されているか。また、児童の就学に際し、小学校への送付が行われているか。"]
[null,1,"-",31,"児童の就学に際し、保育所児童保育要録の小学校への送付状況"]
[null,1,"-",32,"保護者との連絡調整、家庭との連携の状況",null,null,null,null,null,"保護者との連絡を適切に行い、家庭との連携を図るように努めているか。"]
[null,1,"-",33,"職員及び保育所の課題を踏まえた研修の計画的な実施状況",null,null,null,null,null,"職員及び保育所の課題を踏まえた研修が計画的に実施されているか。"]
[null,1,"-",34,"定員を超えた私的契約児の入所の状況",null,null,null,null,null,"定員を超えて私的契約児を入所させていないか。"]
[null,null,null,null,"（共通事項）"]
[null,1,"-",35,"健康診断の実施、結果の記録及び保管の状況"]
[null,1,"-",36,"乳幼児突然死症候群の防止への対策状況",null,null,null,null,null,"乳幼児突然死症候群の防止に努めるなど、事故防止対策を講じているか。"]
[null,1,"-",42,"子どもの不適切な養育等の発見への努力、必要に応じた関係機関との連携状況",null,null,null,null,null,"子どもの状態を観察し、不適切な養育等の発見に努めるとともに、必要に応じて関係機関との連携を図つているか。"]
[null,1,"-",43,"その他"]
["小　　　　　　　　　　　　　　　　　　　　計"]
["　２　入所者の生活環境等の確保の状況"]
[null,2,"-",null,"○社会福祉施設共通事項",null,null,null,null,null,null,null,null,null,null,null,null,null,null,null,null,null,null,null,null,null,null,null,null,null,null,null,null,null,null,null,null,null,null,null,null,null,null,null,{"$f":"SUM(AS8:AS102)","v":0},{"$f":"SUM(AT8:AT102)","v":0}]
[null,2,"-",1,"入所者の安全・快適な生活空間の確保の状況",null,null,null,null,null,"入所者が安全・快適に生活できる広さ、構造、設備となっているか。"]
[null,2,"-",2,"障害に応じた配慮の確保の状況",null,null,null,null,null,"障害に応じた配慮がなされているか。"]
[null,2,"-",3,"居室等の設備及び運営基準への適合状況",null,null,null,null,null,"居室等が設備及び運営基準にあつた構造になっているか。"]
[null,2,"-",4,"居室等の清掃、衛生管理、保温、換気、採光及び照明の状況",null,null,null,null,null,"居室等の清掃、衛生管理、保温、換気、採光及び照明は適切になされているか。"]
[null,2,"-",5,"その他"]
["　４　施設の運営管理体制の状況"]
[null,4,"-",null,"○社会福祉施設共通事項",null,null,null,null,null,null,null,null,null,null,null,null,null,null,null,null,null,null,null,null,null,null,null,null,null,null,null,null,null,null,null,null,null,null,null,null,null,null,null,{"$f":"SUM(AS109:AS109)","v":0},{"$f":"SUM(AT109:AT109)","v":0}]
[null,4,"-",1,"入所定員及び居室定員の遵守の状況",null,null,null,null,null,"入所定員及び居室の定員を遵守しているか。"]
[null,null,null,null,null,null,null,null,null,null,null,null,null,null,null,null,null,null,null,null,null,null,null,null,null,null,null,null,"必要面積",null,null,"該当児童数"]
[null,null,null,null,null,null,null,null,null,null,null,null,null,null,null,null,null,"０・１歳児",null,null,"乳児室(ほふくしない子)",null,null,null,null,null,null,null,1.65]
[null,null,null,null,null,null,null,null,null,null,null,null,null,null,null,null,null,null,null,null,"ほふく室(ほふくする子の部屋)",null,null,null,null,null,null,null,3.3]
[null,null,null,null,null,null,null,null,null,null,null,null,null,null,null,null,null,"２歳以上児",null,null,"保育室又は遊戯室",null,null,null,null,null,null,null,1.98]
[]
[]
[]
[]
[null,4,"-",2,"管理規程、経理規程等の整備及び運用の状況",null,null,null,null,null,"必要な諸規程は、整備されているか。",null,null,null,null,null,null,null,"種類",null,null,null,"有無",null,null,null,"制定",null,null,null,null,null,null,null,"最終改正"]
[null,null,null,null,null,null,null,null,null,null,null,null,null,null,null,null,null,null,"管理規定",null,null,null,null,"有",null,"無",null,null,null,"年",null,"月",null,"日",null,null,null,"年",null,"月",null,"日"]
[null,null,null,null,null,null,null,null,null,null,null,null,null,null,null,null,null,null,"就業規定",null,null,null,null,"有",null,"無",null,null,null,"年",null,"月",null,"日",null,null,null,"年",null,"月",null,"日"]
[null,null,null,null,null,null,null,null,null,null,null,null,null,null,null,null,null,null,"給与規定",null,null,null,null,"有",null,"無",null,null,null,"年",null,"月",null,"日",null,null,null,"年",null,"月",null,"日"]
[null,null,null,null,null,null,null,null,null,null,null,null,null,null,null,null,null,null,"旅費規定",null,null,null,null,"有",null,"無",null,null,null,"年",null,"月",null,"日",null,null,null,"年",null,"月",null,"日"]
[null,null,null,null,null,null,null,null,null,null,null,null,null,null,null,null,null,null,"経理規定",null,null,null,null,"有",null,"無",null,null,null,"年",null,"月",null,"日",null,null,null,"年",null,"月",null,"日"]
[null,null,null,null,null,null,null,null,null,null,null,null,null,null,null,null,null,null,"公印規定",null,null,null,null,"有",null,"無",null,null,null,"年",null,"月",null,"日",null,null,null,"年",null,"月",null,"日"]
[null,null,null,null,null,null,null,null,null,null,null,null,null,null,null,null,null,null,"庶務規定",null,null,null,null,"有",null,"無",null,null,null,"年",null,"月",null,"日",null,null,null,"年",null,"月",null,"日"]
[null,null,null,null,null,null,null,null,null,null,null,null,null,null,null,null,null,null,"育児休暇規定",null,null,null,null,"有",null,"無",null,null,null,"年",null,"月",null,"日",null,null,null,"年",null,"月",null,"日"]
[]
[null,null,null,null,null,null,null,null,null,null,null,null,null,null,null,null,null,null,"改正は必要な手続きを経て行われているか",null,null,null,null,null,null,null,null,null,null,null,null,null,null,null,null,null,null,"はい",null,null,null,"いいえ"]
[]
[]
[]
[]
[]
[]
[null,null,null,null,null,null,null,null,null,null,"必要な規程に基づいた適切な運用がなされているか。"]
[null,4,"-",3,"帳簿類の整備状況",null,null,null,null,null,"施設運営に必要な帳簿は整備されているか。"]
[null,4,"-",4,"直接処遇職員等配置基準に基づく必要な職員の確保の状況",null,null,null,null,null,"直接処遇職員等は、配置基準に基づく必要な職員が確保されているか。"]
[null,4,"-",5,"施設職員の専従の状況",null,null,null,null,null,"施設の職員は、専ら当該施設の職務に従事しているか。"]
[null,4,"-",6,"施設長の資格要件等の充足状況",null,null,null,null,null,"施設長に適任者が配置されているか。"]
[null,null,null,null,null,null,null,null,null,null," 施設長の資格要件は満たされているか。"]
[null,null,null,null,null,null,null,null,null,null,"施設長は専任者が確保されているか。"]
[null,null,null,null,null,null,null,null,null,null,"施設長がやむなく他の役職を兼務している場合は、施設の運営管理に支障が生じないような体制がとられているか。"]
[null,4,"-",7,"育児休業、産休等代替職員の確保の状況",null,null,null,null,null,"育児休業、産体等代替職員は確保されているか。"]
[null,4,"-",8,"建物、設備の維持管理状況",null,null,null,null,null,"施設設備等生活環境は、適切に確保されているか。"]
[null,null,null,null,null,null,null,null,null,null,"施設設備は、適正に整備されているか。また、建物、設備の維持管理は適切に行われているか。"]
[null,4,"-",9,"運営費の適正運用及び弾力運用の状況",null,null,null,null,null,"運営費は適正に運用され、弾力運用も適正に行われているか。"]
[null,4,"-",10,"運用収入の本部会計への繰入の状況",null,null,null,null,null,"運用収入の本部会計への繰入額は妥当であるか。また、その積算根拠は明確にされているか。"]
[null,4,"-",11,"当期末支払資金残高の充当の状況",null,null,null,null,null,"当期末支払資金残高は、優先的に各種積立金に充てられているか。"]
[null,4,"-",12,"当期末支払資金残高及び引当金の管理運用及び取り崩し等に係る手続きの状況",null,null,null,null,null,"当期末支払資金残高及び積立金は、安全確実な方法で管理運用されているか。また、取り崩し等についての手続きは適正に行われているか。"]
[null,4,"-",13,"高額当期末支払資金残高等を有している場合の入所者処遇等の改善への取組状況",null,null,null,null,null,"高額の当期末支払資金残高等を有している場合、入所者処遇等に必要な改善を要するところはないか。"]
[null,null,null,null,null,null,null,null,null,null,"当期末支払資金残高を有している場合は、過大な保有を防止する観点から当該年度の運営費収入の30%以下の保有となっているか。"]
[null,4,"-",14,"施設の地域開放及び地域との連携の状況",null,null,null,null,null,"施設設備を地域に開放し、地域との連携が深められているか。"]
[null,4,"-",null,"○児童福祉施設事項"]
[null,4,"-",15,"予算及び補正予算の編成の時期及び積算の状況",null,null,null,null,null,"予算及び補正予算の編成の時期と積算は適切に行われているか。"]
[null,4,"-",16,"措置費等の請求の状況",null,null,null,null,null," 措置費等の請求金額が適正に行われているか。 措置費等の請求金額が適正に行われているか。\n会計経理が適切に行われているか。"]
[null,4,"-",17,"事業費と事務費の流用の状況",null,null,null,null,null,"事業費と事務費の流用が適正に行われているか。"]
[null,4,"-",18,"利用者負担金（職員給食費、延長保育利用料等）の設定状況",null,null,null,null,null,"利用者負担金(職員給食費等=共通事項)0(延長保育、一時保育利用料、私的契約児利用料=保育所)が適正な額となっているか。"]
[null,4,"-",19,"他会計間の貸借処理の状況",null,null,null,null,null,"他の会計間の貸借が適正に行われているか。"]
[null,4,"-",20,"現金、預金等の保管状況",null,null,null,null,null," 現金、預金等の保管が適正に行われているか。"]
[null,4,"-",21,"内部牽制体制の確立及び機能の状況",null,null,null,null,null,"内部牽制体制が確立され、適正に機能しているか。"]
[null,4,"-",22,"その他"]
["小　　　　　　　　　　　　　　　　　　　　計"]
["　５　必要な職員の確保と職員処遇の状況"]
[null,null,null,null,"○社会福祉施設共通事項",null,null,null,null,null,null,null,null,null,null,null,null,null,null,null,null,null,null,null,null,null,null,null,null,null,null,null,null,null,null,null,null,null,null,null,null,null,null,null,{"$f":"SUM(AS138:AS165)","v":0},{"$f":"SUM(AT138:AT165)","v":0}]
[null,5,"-",1,"給与規程等の各種規程の整備状況"]
[null,5,"-",2,"労働時間の短縮等労働条件の改善への取組状況",null,null,null,null,null,"労働時間の短縮等労働条件の改善に努めているか。"]
[null,5,"-",3,"労働基準法等関係法規の遵守の状況",null,null,null,null,null,"労働基準法等関係法規は、遵守されているか。"]
[null,5,"-",4,"職員への健康診断等健康管理の実施状況",null,null,null,null,null,"職員への健康診断等健康管理は、適正に実施されているか。"]
[null,5,"-",5,"業務体制の確立と業務省力化推進の取組状況",null,null,null,null,null,"業務体制の確立と業務省力化の推進のための努力がなされているか。"]
[null,5,"-",6,"職員研修等資質向上策の対応状況",null,null,null,null,null,"職員研修等資質向上対策について、その推進に努めているか。"]
[null,5,"-",7,"職員の確保及び定着化への取組状況",null,null,null,null,null,"職員の確保及び定着化について積極的に取り組んでいるか。"]
[null,5,"-",null,"○児童福祉施設事項"]
[null,5,"-",8,"通勤・住宅手当等の各種手当の規定及び支出の状況",null,null,null,null,null,"通勤・住宅手当等の各種手当が規定され、適正に支払われているか。"]
[null,5,"-",9,"労使協定の締結及び労働基準監督署への届出状況",null,null,null,null,null,"労働基準法第24条・第36条の労使の協定が締結され、労働基準監督署へ提出されているか。"]
[null,5,"-",10,"職員の計画的な採用の実施状況",null,null,null,null,null,"職員の確保及び定着化について積極的に取り組んでいるか。"]
[null,null,null,null,null,null,null,null,null,null,null,"職員の計画的な採用に努めているか。"]
[null,null,null,null,null,null,null,null,null,null,null,"労働条件の改善等に配慮し、定着促進及び離職防止に努めているか。"]
[null,5,"-",11,"労働条件の改善等に配慮、定着促進等への取組状況"]
[null,5,"-",12,"その他"]
["小　　　　　　　　　　　　　　　　　　　　計"]
["　６　防災対策への取組状況"]
[null,null,null,null,"○社会福祉施設共通事項",null,null,null,null,null,null,null,null,null,null,null,null,null,null,null,null,null,null,null,null,null,null,null,null,null,null,null,null,null,null,null,null,null,null,null,null,null,null,null,{"$f":"SUM(AS169:AS183)","v":0},{"$f":"SUM(AT169:AT183)","v":0}]
[null,6,"-",1,"消防計画の策定の状況"]
[null,6,"-",2,"消防法令に基づくスプリンクラー、屋内消火栓等の整備状況及び定期点検の実施状況　",null,null,null,null,null,"消防法令に基づくスプリンクラー、屋内消火栓、非常通報装置、防災カーテン、寝具等の設備が整備され、また、これらの設備について専門業者により定期的に点検が行われているか。"]
[null,null,null,null,null,null,null,null,null,null,"非常時に対する避難設備(階段、避難器具)が整備され、点検されているか。"]
[null,6,"-",3,"非常時の連絡・避難体制及び地域の協力体制の確保状況",null,null,null,null,null,"非常時の際の連絡・避難体制及び地域の協力体制は、確保されているか。"]
[null,null,null,null,"○児童福祉施設事項"]
[null,6,"-",4,"消火訓練及び避難訓練の実施状況"]
[null,6,"-",5,"防犯についての配慮状況",null,null,null,null,null,"防犯について配慮されているか。"]
[null,null,null,null,null,null,null,null,null,null,"防災対策について、その充実強化に努めているか。"]
[null,6,"-",6,"その他"]

{"sheet":"DL","index":2,"n_rows":28,"n_cols":12,"rows_kept":28,"cut":false,"hidden":true,"merged":[[2,6,2,7],[2,9,2,10]]}
[]
[null,"昭和","=INDIRECT(\"DL!B2:B3\")",null,null,0,1,2,3,4,5,"計"]
[null,"平成",null,null,null,{"$f":"ROUNDDOWN(#REF!/3,1)","v":{"$error":"#REF!"}},{"$f":"ROUNDDOWN((#REF!+#REF!)/6,1)","v":{"$error":"#REF!"}},null,{"$f":"ROUNDDOWN(#REF!/20,1)","v":{"$error":"#REF!"}},{"$f":"ROUNDDOWN((#REF!+#REF!)/30,1)","v":{"$error":"#REF!"}},null,{"$f":"SUM(F3:K3)","v":{"$error":"#REF!"}}]
[]
[null,"市町","=INDIRECT(\"DL!B5:B12\")"]
[null,"社会福祉法人"]
[null,"学校法人"]
[null,"宗教法人"]
[null,"財団法人"]
[null,"特定非営利活動法人"]
[null,"株式会社"]
[null,"有限会社"]
[]
[null,"有","=INDIRECT(\"DL!B15:B16\")"]
[null,"無"]
[]
[null,"○","=INDIRECT(\"DL!B17:B18\")"]
[null,"×"]
[]
[null,"1.有","=INDIRECT(\"DL!B20:B21\")"]
[null,"2.無"]
[]
[null,"昭和","=INDIRECT(\"DL!B23:B24\")"]
[null,"平成"]
[]
[null,"時間","=INDIRECT(\"DL!B26:B28\")"]
[null,"回"]
[null,"日"]

{"sheet":"説明","index":3,"n_rows":26,"n_cols":13,"rows_kept":26,"cut":false,"hidden":false,"merged":[[25,0,25,12],[18,2,18,12],[23,0,24,0],[19,0,20,0],[13,0,13,12],[14,0,14,12],[15,0,15,12],[16,0,16,12],[17,0,17,12],[19,2,19,12],[20,2,20,12],[21,2,21,12],[23,2,23,12],[24,2,24,12],[22,2,22,12],[1,0,1,6],[2,0,2,6],[5,5,6,5],[5,6,6,6],[5,7,5,10],[5,11,5,12],[4,0,6,0],[4,2,6,2],[4,3,4,6],[5,1,6,1],[5,3,6,3],[5,4,6,4]]}
["（説明）"]
["一時預かり事業は、以下の区分で実施されることとなっています。\n下記の色づけした場所で一時預かり事業を行う場合、このチェックリストに記載してください。"]
["保育所、認定こども園における一時預かり事業は、\n●保育所・保育所型認定こども園\n●幼保連携型認定こども園\nのチェックリストの一時預かり事業のシートに記載してください。"]
[]
["事業区分","根拠法令、基準等","対象児童等","事業実施場所"]
[null,"定義等",null,"保育所","幼稚園","認定こども園","★その他の場所","★地域型保育",null,null,null,"★その他"]
[null,null,null,null,null,null,null,"家庭的保育事業所","小規模保育事業","居宅訪問型保育事業(乳幼児の居宅）","事業所内保育事業","認可外保育施設(企業主導型含む）、地域子育て支援拠点等","交流施設、利便性の高い施設等(児福法施行規則第56条）"]
["一般型\n","児童福祉法施行規則第36条の35第1項第１号","主として（右の施設に）通っていない、又は在籍していない乳幼児","○","○","○","○","○","○","○","○","○","○"]
["幼稚園型","児童福祉法施行規則第36条の35第1項第2号","主として(右の○印の施設に）在籍している満３歳以上児","―","○","○","―","―","―","―","―","―","―"]
["余裕活用型","児童福祉法施行規則第36条の35第1項第3号","右の○印の施設において利用児童数が利用定員総数に満たない場合","○","―","○","右のとおり","○","○","―","○","―","―"]
["居宅訪問型","児童福祉法施行規則第36条の35第1項第4号","乳幼児の居宅において行う","―","―","―","右のとおり","―","―","○","―","―","―"]
[]
[]
["【児童福祉法施行規則第三十六条の三十五】\n\n一　保育所、幼稚園、認定こども園その他の場所（以下この号において「保育所等」という。）において、主として保育所等に通っていない、又は在籍していない乳幼児に対して一時預かり事業を行う場合（次号から第四号までに掲げる場合を除く。以下この号において「一般型一時預かり事業」という。）　次に掲げる全ての要件を満たすこと。\nイ　児童福祉施設の設備及び運営に関する基準第三十二条の規定に準じ、一般型一時預かり事業の対象とする乳幼児の年齢及び人数に応じて、必要な設備（医務室、調理室及び屋外遊戯場を除く。）を設けること。\nロ　児童福祉施設の設備及び運営に関する基準第三十三条第二項の規定に準じ、一般型一時預かり事業の対象とする乳幼児の年齢及び人数に応じて、当該乳幼児の処遇を行う職員として保育士（特区法第十二条の四第五項に規定する事業実施区域内にある一般型一時預かり事業を行う場所にあつては、保育士又は当該事業実施区域に係る国家戦略特別区域限定保育士。以下このロ及びハにおいて同じ。）その他市町村長が行う研修（市町村長が指定する都道府県知事その他の機関が行う研修を含む。）を修了した者を置くこととし、そのうち半数以上は保育士（当該一般型一時預かり事業を利用している乳幼児の人数が一日当たり平均三人以下である場合にあつては、第一条の三十二に規定する研修と同等以上の内容を有すると認められるものを修了した者を含む。ハおいて同じ。）であること。ただし、当該職員の数は、二人を下ることはできないこと。\nハ　ロに規定する職員は、専ら当該一般型一時預かり事業に従事するものでなければならないこと。ただし、次のいずれかに該当する場合は、専ら当該一般型一時預かり事業に従事する職員を一人とすることができること。\n（１）当該一般型一時預かり事業と保育所等とが一体的に運営されている場合であつて、当該一般型一時預かり事業を行うに当たつて当該保育所等の職員（保育その他の子育て支援に従事する職員に限る。）による支援を受けることができ、かつ、専らときは、専ら当該一般型一時預かり事業に従事する職員が保育士であるとき\n（２）当該一般型一時預かり事業を利用している乳幼児の人数が一日当たり平均三人以下である場合であって、保育所等を利用している乳幼児の保育が現に行われている乳児室、ほふく室、保育室又は遊戯室において当該一般型一時預かり事業が実施され、かつ、当該一般型一時預かり事業を行うに当たって当該保育所等の保育士による支援を受けることができるとき\nニ　児童福祉施設の設備及び運営に関する基準第三十五条の規定に準じ、事業を実施すること。\nホ　食事の提供を行う場合（施設外で調理し運搬する方法により行う場合を含む。次号ホにおいて同じ。）においては、当該施設において行うことが必要な調理のための加熱、保存等の調理機能を有する設備を備えること。\n\n"]
["二　幼稚園又は認定こども園（以下この号において「幼稚園等」という。）において、主として幼稚園等に在籍している満三歳以上の幼児に対して一時預かり事業を行う場合（以下この号において「幼稚園型一時預かり事業」という。）　次に掲げる全ての要件を満たすこと。\nイ　児童福祉施設の設備及び運営に関する基準第三十二条の規定に準じ、幼稚園型一時預かり事業の対象とする幼児の年齢及び人数に応じて、必要な設備（調理室及び屋外遊戯場を除く。）を設けること。\nロ　児童福祉施設の設備及び運営に関する基準第三十三条第二項の規定に準じ、幼稚園型一時預かり事業の対象とする幼児の年齢及び人数に応じて、当該幼児の処遇を行う職員として保育士（特区法第十二条の四第五項に規定する事業実施区域内にある幼稚園型一時預かり事業を行う場所にあつては、保育士又は当該事業実施区域に係る国家戦略特別区域限定保育士。以下このロ及びハただし書において同じ。）、幼稚園の教諭の普通免許状（教育職員免許法に規定する普通免許状をいう。）を有する者（以下この号において「幼稚園教諭普通免許状所有者」という。）その他市町村長が行う研修（市町村長が指定する都道府県知事その他の機関が行う研修を含む。）を修了した者を置くこととし、そのうち半数以上は保育士又は幼稚園教諭普通免許状所有者であること。ただし、当該職員の数は、二人を下ることはできないこと。\nハ　ロに規定する職員は、専ら当該幼稚園型一時預かり事業に従事するものでなければならないこと。ただし、当該幼稚園型一時預かり事業と幼稚園等とが一体的に運営されている場合であつて、当該幼稚園型一時預かり事業を行うに当たつて当該幼稚園等の職員（保育士又は幼稚園教諭普通免許状所有者に限る。）による支援を受けることができるときは、専ら当該幼稚園型一時預かり事業に従事する職員を一人とすることができること。\nニ　次に掲げる施設の区分に応じ、それぞれ次に定めるものに準じ、事業を実施すること。\n（１）　幼稚園又は幼保連携型認定こども園以外の認定こども園　学校教育法第二十五条の規定に基づき文部科学大臣が定める幼稚園の教育課程その他の教育内容に関する事項\n（２）　幼保連携型認定こども園　認定こども園法第十条第一項の規定に基づき主務大臣が定める幼保連携型認定こども園の教育課程その他の教育及び保育の内容に関する事項\nホ　食事の提供を行う場合においては、当該施設において行うことが必要な調理のための加熱、保存等の調理機能を有する設備を備えること。\n\n"]
["三　保育所、認定こども園又は家庭的保育事業等（居宅訪問型保育事業を除く。以下この号において同じ。）を行う事業所において、当該施設又は事業を利用する児童の数（以下この号において「利用児童数」という。）が当該施設又は事業に係る利用定員の総数に満たない場合であつて、当該利用定員の総数から当該利用児童数を除いた数の乳幼児を対象として一時預かり事業を行うとき　次に掲げる施設又は事業所の区分に応じ、それぞれ次に定めるものに準じ、事業を実施すること。\nイ　保育所　児童福祉施設の設備及び運営に関する基準（保育所に係るものに限る。）\nロ　幼保連携型認定こども園以外の認定こども園　認定こども園法第三条第二項に規定する主務大臣が定める施設の設備及び運営に関する基準\nハ　幼保連携型認定こども園　幼保連携型認定こども園の学級の編制、職員、設備及び運営に関する基準（平成二十六年内閣府・文部科学省・厚生労働省令第一号）\nニ　家庭的保育事業等を行う事業所　家庭的保育事業等の設備及び運営に関する基準（平成二十六年厚生労働省令第六十一号）（居宅訪問型保育事業に係るものを除く。）\n\n四　乳幼児の居宅において一時預かり事業を行う場合　家庭的保育事業等の設備及び運営に関する基準（居宅訪問型保育事業に係るものに限る。）に準じ、事業を実施すること。\n"]
["＜例外規定＞\n児童福祉法施行規則第五十六条\n　第三十六条の三十五第一項第二号の規定の適用については、当分の間、同号ロ中「をいう。」とあるのは「をいう。以下このロにおいて同じ。」と、「修了した者」とあるのは「修了した者又は小学校の教諭若しくは養護教諭の普通免許状を有する者その他の教育及び保育に関する知識、経験等を有する者として市町村長が認めるもの」と、「半数」とあるのは「三分の一」とする。\n\n②　法第三十四条の十三に規定する厚生労働省令で定める基準は、乳幼児及びその保護者が相互の交流を行う場所として開設された施設又は駅周辺の施設その他の利便性の高い施設において、乳幼児を対象に一時預かり事業を行う場合には、当分の間、第三十六条の三十五第一項の規定にかかわらず、次の各号に定めるところによることができる。\n一　児童福祉施設の設備及び運営に関する基準第三十二条の規定に準じ、事業の対象とする乳幼児の年齢及び人数に応じて、必要な設備（医務室、調理室及び屋外遊戯場を除く。）を設けるよう努めること。\n二　児童福祉施設の設備及び運営に関する基準第三十三条第二項の規定に準じ、事業の対象とする乳幼児の年齢及び人数に応じて、当該乳幼児の処遇を行う職員として保育士（特区法第十二条の五第五項に規定する事業実施区域内にある施設にあつては、保育士又は当該事業実施区域に係る国家戦略特別区域限定保育士。次号において同じ。）又は市町村長が行う研修（市町村長が指定する都道府県知事その他の機関が行う研修を含む。）を修了した者を置くこと。ただし、当該職員の数は、二人を下ることはできないこと。\n三　前号に規定する職員のうち一人以上は、豊富な経験を有する保育士であること。\n四　児童福祉施設の設備及び運営に関する基準第三十五条の規定に準じ、事業を実施すること。\n五　食事の提供を行う場合（施設外で調理し運搬する方法により行う場合を含む。）においては、当該施設において行うことが必要な調理のための加熱、保存等の調理機能を有する設備を備えるよう努めること。"]
["＜参照条文＞\n第三十二条　保育所の設備の基準は、次のとおりとする。\n一　乳児又は満二歳に満たない幼児を入所させる保育所には、乳児室又はほふく室、医務室、調理室及び便所を設けること。\n二　乳児室の面積は、乳児又は前号の幼児一人につき一・六五平方メートル以上であること。\n三　ほふく室の面積は、乳児又は第一号の幼児一人につき三・三平方メートル以上であること。\n四　乳児室又はほふく室には、保育に必要な用具を備えること。\n五　満二歳以上の幼児を入所させる保育所には、保育室又は遊戯室、屋外遊戯場（保育所の付近にある屋外遊戯場に代わるべき場所を含む。次号において同じ。）、調理室及び便所を設けること。\n六　保育室又は遊戯室の面積は、前号の幼児一人につき一・九八平方メートル以上、屋外遊戯場の面積は、前号の幼児一人につき三・三平方メートル以上であること。\n七　保育室又は遊戯室には、保育に必要な用具を備えること。\n八　乳児室、ほふく室、保育室又は遊戯室（以下「保育室等」という。）を二階に設ける建物は、次のイ、ロ及びヘの要件に、保育室等を三階以上に設ける建物は、次に掲げる要件に該当するものであること。\nイ　耐火建築物（建築基準法（昭和二十五年法律第二百一号）第二条第九号の二に規定する耐火建築物をいう。以下この号において同じ。）又は準耐火建築物（同条第九号の三に規定する準耐火建築物をいい、同号ロに該当するものを除く。）（保育室等を三階以上に設ける建物にあつては、耐火建築物）であること。\nロ　保育室等が設けられている次の表の上欄に掲げる階に応じ、同表の中欄に掲げる区分ごとに、それぞれ同表の下欄に掲げる施設又は設備が一以上設けられていること。\n"]
["階"," 区分","施設又は設備"]
["二階","常用","１　屋内階段\n２　屋外階段"]
[null,"避難用","１　建築基準法施行令（昭和二十五年政令第三百三十八号）第百二十三条第一項各号又は同条第三項各号に規定する構造の屋内階段（ただし、同条第一項の場合においては、当該階段の構造は、建築物の一階から二階までの部分に限り、屋内と階段室とは、バルコニー又は付室を通じて連絡することとし、かつ、同条第三項第三号、第四号及び第十号を満たすものとする。）\n２　待避上有効なバルコニー\n３　建築基準法第二条第七号の二に規定する準耐火構造の屋外傾斜路又はこれに準ずる設備\n４　屋外階段"]
["三階","常用","１　建築基準法施行令第百二十三条第一項各号又は同条第三項各号に規定する構造の屋内階段\n２　屋外階段 "]
[null,"避難用","１　建築基準法施行令第百二十三条第一項各号又は同条第三項各号に規定する構造の屋内階段（ただし、同条第一項の場合においては、当該階段の構造は、建築物の一階から三階までの部分に限り、屋内と階段室とは、バルコニー又は付室を通じて連絡することとし、かつ、同条第三項第三号、第四号及び第十号を満たすものとする。）\n２　建築基準法第二条第七号に規定する耐火構造の屋外傾斜路又はこれに準ずる設備\n３　屋外階段"]
["四階以上","常用","１　建築基準法施行令第百二十三条第一項各号又は同条第三項各号に規定する構造の屋内階段\n２　建築基準法施行令第百二十三条第二項各号に規定する構造の屋外階段"]
[null,"避難用 ","１　建築基準法施行令第百二十三条第一項各号又は同条第三項各号に規定する構造の屋内階段（ただし、同条第一項の場合においては、当該階段の構造は、建築物の一階から保育室等が設けられている階までの部分に限り、屋内と階段室とは、バルコニー又は付室（階段室が同条第三項第二号に規定する構造を有する場合を除き、同号に規定する構造を有するものに限る。）を通じて連絡することとし、かつ、同条第三項第三号、第四号及び第十号を満たすものとする。）\n２　建築基準法第二条第七号に規定する耐火構造の屋外傾斜路\n３　建築基準法施行令第百二十三条第二項各号に規定する構造の屋外階段"]
["ハ　ロに掲げる施設及び設備が避難上有効な位置に設けられ、かつ、保育室等の各部分からその一に至る歩行距離が三十メートル以下となるように設けられていること。\nニ　保育所の調理室（次に掲げる要件のいずれかに該当するものを除く。ニにおいて同じ。）以外の部分と保育所の調理室の部分が建築基準法第二条第七号に規定する耐火構造の床若しくは壁又は建築基準法施行令第百十二条第一項に規定する特定防火設備で区画されていること。この場合において、換気、暖房又は冷房の設備の風道が、当該床若しくは壁を貫通する部分又はこれに近接する部分に防火上有効にダンパーが設けられていること。\n（１）　スプリンクラー設備その他これに類するもので自動式のものが設けられていること。\n（２）　調理用器具の種類に応じて有効な自動消火装置が設けられ、かつ、当該調理室の外部への延焼を防止するために必要な措置が講じられていること。\nホ　保育所の壁及び天井の室内に面する部分の仕上げを不燃材料でしていること。\nヘ　保育室等その他乳幼児が出入し、又は通行する場所に、乳幼児の転落事故を防止する設備が設けられていること。\nト　非常警報器具又は非常警報設備及び消防機関へ火災を通報する設備が設けられていること。\nチ　保育所のカーテン、敷物、建具等で可燃性のものについて防炎処理が施されていること。\n\n第三十三条　保育所には、保育士（特区法第十二条の五第五項に規定する事業実施区域内にある保育所にあつては、保育士又は当該事業実施区域に係る国家戦略特別区域限定保育士。次項において同じ。）、嘱託医及び調理員を置かなければならない。ただし、調理業務の全部を委託する施設にあつては、調理員を置かないことができる。\n２　保育士の数は、乳児おおむね三人につき一人以上、満一歳以上満三歳に満たない幼児おおむね六人につき一人以上、満三歳以上満四歳に満たない幼児おおむね十五人につき一人以上、満四歳以上の幼児おおむね二十五人につき一人以上とする。ただし、保育所一につき二人を下ることはできない。\n※３歳児・４歳以上児についてR6.4.1施行で改正あり（保育士及び保育従事者の配置の状況に鑑み、保育の提供に支障を及ぼすおそれがあるときは、当分の間、改正後基準（次項において「設備運営基準は適用しない旨の経過措置あり。）。改正前の基準は、３歳児20人につき１人以上、４歳以上児30人につき１人以上\n\n第三十五条　保育所における保育は、養護及び教育を一体的に行うことをその特性とし、その内容については、厚生労働大臣が定める指針に従う。"]

{"sheet":"一時預かり①(基本）","index":4,"n_rows":34,"n_cols":30,"rows_kept":34,"cut":false,"hidden":false,"merged":[[30,20,30,21],[30,22,30,23],[30,24,30,25],[30,26,30,27],[15,20,15,22],[15,24,15,29],[30,10,30,11],[30,12,30,13],[30,14,30,15],[30,16,30,17],[30,18,30,19],[15,4,15,14],[28,6,28,7],[28,8,28,9],[28,10,28,11],[28,12,28,13],[28,14,28,15],[28,16,28,17],[28,18,28,19],[28,20,28,21],[28,22,28,23],[26,23,26,25],[22,12,22,13],[17,8,18,14],[30,0,30,1],[30,2,30,3],[30,4,30,5],[30,6,30,7],[30,8,30,9],[28,24,28,25],[28,26,28,27],[29,0,29,1],[29,2,29,3],[29,4,29,5],[29,6,29,7],[29,8,29,9],[29,10,29,11],[29,12,29,13],[29,14,29,15],[29,16,29,17],[29,18,29,19],[29,20,29,21],[29,22,29,23],[29,24,29,25],[29,26,29,27],[28,0,28,1],[28,2,28,3],[28,4,28,5],[21,24,21,29],[24,23,24,29],[21,15,21,19],[18,22,18,23],[18,24,18,29],[19,24,19,29],[22,24,22,29],[26,17,26,18],[24,17,24,22],[25,20,25,22],[25,17,25,18],[25,27,25,29],[25,23,25,25],[20,24,20,29],[20,3,20,4],[20,6,20,7],[20,15,20,19],[18,3,18,7],[18,15,18,19],[18,20,18,21],[19,6,19,7],[22,6,22,7],[21,3,21,4],[21,6,21,7],[22,15,22,16],[22,17,22,18],[22,0,22,2],[22,3,22,4],[17,0,17,7],[17,15,17,28],[18,0,18,2],[7,19,7,22],[7,24,7,29],[10,22,10,23],[9,5,9,8],[9,24,9,27],[7,8,7,17],[10,17,10,20],[10,15,10,16],[7,0,7,3],[8,0,9,3],[11,0,12,3],[21,0,21,2],[19,12,19,13],[20,12,20,13],[21,12,21,13],[19,0,19,2],[19,3,19,4],[19,15,19,19],[20,0,20,2],[26,0,26,4],[26,11,26,12],[24,0,24,4],[25,0,25,4],[24,5,24,10],[24,11,24,16],[25,8,25,10],[25,14,25,16],[26,5,26,6],[25,5,25,6],[25,11,25,12],[0,0,0,29],[15,0,15,3],[14,7,14,8],[14,15,14,18],[14,0,14,3],[15,15,15,18],[6,19,6,20],[10,0,10,3],[7,5,7,6],[10,25,10,29],[6,21,6,22],[6,24,6,25],[6,27,6,28],[6,0,6,3],[6,4,6,14],[6,15,6,18],[2,26,2,29],[11,8,11,18],[14,9,14,14],[14,19,14,29]]}
["令和６年度チェックリスト【　一時預かり事業　】\n※保育所・認定こども園以外（地域型保育事業所、認可外保育施設、交流施設・利便性の高い施設等）"]
[]
["＜基本情報＞",null,null,null,null,null,null,null,null,null,null,null,null,null,null,null,null,null,null,null,null,null,null,null,null,null,{"$f":"DATE(誓約書!AH3+2018,4,1)","v":"2024-04-01"}]
["・下記を記載ください。欄のスペースが足りない場合は広げてください。"]
["・利用リーフレット、ホームページの写し等（利用方法・料金、開所（訪問）時間等保護者への周知文書）を添付してください。"]
["１　事業所に関する事項"]
["施設名称",null,null,null,{"$f":"誓約書!Y15","v":0},null,null,null,null,null,null,null,null,null,null,"事業開始年月日",null,null,null,"平成",null,null,null,"年",null,null,"月",null,null,"日"]
["施設所在地等",null,null,null,"〒",null,null,null,null,null,null,null,null,null,null,null,null,null,"℡",null,null,null,null,"Email"]
["施設の種類（（　）内に施設種別を記載のこと）",null,null,null,null,"地域型保育事業所",null,null,null,null,null,null,null,"地域子育て支援拠点"]
[null,null,null,null,"（",null,null,null,null,"）",null,null,null,"認可外保育施設",null,null,null,null,null,null,null,"その他",null,"(",null,null,null,null,")"]
["事業の種別　\n※説明シート参照",null,null,null,null,"一般型",null,null,"余裕活用型(※地域型保育のみ該当）",null,null,null,null,null,null,"居宅\n訪問型",null,"事業の管理者",null,null,null,"職",null,null,"氏名"]
["市町からの委託\n又は補助",null,null,null,null,"あり","(事業名）",null,null,null,null,null,null,null,null,null,null,null,null,null,null,"なし"]
[null,null,null,null,null,null,null,null,null,"(","(例）","一時預かり事業　一般型",null,null,null,null,"）"]
["２　設置主体に関する事項"]
["設置主体名",null,null,null,null,"個人",null,"法人、法人名称",null,{"$f":"誓約書!Y9","v":0},null,null,null,null,null,"代表者職・氏名",null,null,null,{"$f":"誓約書!Y12","v":0}]
["主たる事務所の所在地",null,null,null,null,null,null,null,null,null,null,null,null,null,null,"連絡先",null,null,null,"℡",null,null,null,"Email"]
["３　運営に関する事項"]
["（１）開設時間",null,null,null,null,null,null,null,"（２）利用定員\n(注）一般型⇒一時預かりのみの定員、余裕活用型⇒一時預かりを含む保育定員を記載）",null,null,null,null,null,null,"（３）職員数（（２）(注）と同じ）"]
["曜日",null,null,"開設時間（24時間表記）",null,null,null,null,null,null,null,null,null,null,null,"職種",null,null,null,null,"専属",null,"兼務",null,"兼務先機関名"]
[null,null,null,null,null,"～",null,null,"0歳児",null,"名","4歳児",null,null,"名","保育士",null,null,null,null,null,"名",null,"名"]
[null,null,null,null,null,"～",null,null,"1歳児",null,"名","5歳児",null,null,"名","家庭的保育者",null,null,null,null,null,"名",null,"名"]
[null,null,null,null,null,"～",null,null,"2歳児",null,"名","ほか",null,null,"名","子育て支援員",null,null,null,null,null,"名",null,"名"]
[null,null,null,null,null,"～",null,null,"3歳児",null,"名","合計",{"$f":"J20+J21+J22+J23+M20+M21+M22","v":0},null,"名","その他（",null,null,null,"）",null,"名",null,"名"]
["４　設備に関する事項　（注：一般型 ⇒ 一時預かりのみの面積、余裕活用型 ⇒ 施設全体の面積　を記載）"]
["種　　類",null,null,null,null,"乳児室",null,null,null,null,null,"ほふく室",null,null,null,null,null,"保育室",null,null,null,null,null,"遊戯室"]
["面　　積",null,null,null,null,null,null,"㎡","(参考）\n一人当たり面積基準",null,null,null,null,"㎡","(参考）\n一人当たり面積基準",null,null,null,null,"㎡","(参考）\n一人当たり面積基準",null,null,null,null,null,"㎡","(参考）\n一人当たり面積基準"]
["1人当たり面積",null,null,null,null,null,null,"㎡",null,1.65,"㎡",null,null,"㎡",null,3.3,"㎡",null,null,"㎡",null,1.98,"㎡",null,null,null,"㎡",null,1.98,"㎡"]
["５　利用状況"]
[null,null,"４月",null,"５月",null,"６月",null,"７月",null,"８月",null,"９月",null,"１０月",null,"１１月",null,"１２月",null,"１月",null,"２月",null,"３月",null,"合計"]
["令和５年度",null,null,null,null,null,null,null,null,null,null,null,null,null,null,null,null,null,null,null,null,null,null,null,null,null,{"$f":"SUM(C30:Z30)","v":0}]
["令和６年度",null,null,null,null,null,null,null,null,null,null,null,null,null,null,null,null,null,null,null,null,null,null,null,null,null,{"$f":"SUM(C31:Z31)","v":0}]
[]
[null,null,"注 1","各月の利用延べ利用者数を記載して下さい。"]
[null,null,2,"令和６年度は、資料作成日の前月までの状況を記載して下さい"]

{"sheet":"一時預かり②(点検表）","index":5,"n_rows":45,"n_cols":10,"rows_kept":45,"cut":false,"hidden":false,"merged":[[2,9,3,9],[6,8,14,8],[6,9,14,9],[8,0,12,0],[2,7,3,7],[2,8,3,8],[6,4,14,4],[2,0,3,3],[4,0,5,3],[6,5,7,6],[6,7,7,7],[8,5,11,6],[6,0,6,3],[8,7,11,7],[12,7,13,7],[12,5,13,6],[17,0,17,3],[15,0,15,3],[24,5,24,6],[22,0,25,3],[22,4,25,4],[23,5,23,6],[22,5,22,6],[15,4,16,4],[16,0,16,2],[18,0,19,3],[20,0,21,3],[39,9,44,9],[0,8,0,9],[31,5,31,6],[30,5,30,6],[29,5,29,6],[28,5,28,6],[2,4,2,6],[3,5,3,6],[14,5,14,6],[5,5,5,6],[4,5,4,6],[20,5,20,6],[19,5,19,6],[33,5,33,6],[32,5,32,6],[18,5,18,6],[39,8,44,8],[37,5,37,6],[25,5,25,6],[26,5,26,6],[15,5,16,6],[15,7,16,7],[39,5,44,6],[17,5,17,6],[21,5,21,6],[38,0,38,9],[34,5,34,6],[27,0,27,9],[20,4,21,4],[20,8,21,8],[20,9,21,9],[36,5,36,6],[35,5,35,6],[18,4,19,4],[26,0,26,3],[30,0,34,3],[35,0,36,3],[39,4,44,4],[32,4,34,4],[39,0,44,3],[28,0,29,3],[37,0,37,3]]}
["＜一時預かり事業立入検査点検表　※保育所・認定こども園以外（地域型保育施設、認可外保育施設、交流施設・利便性の高い施設等）＞",null,null,null,null,null,null,null,{"$f":"DATE(誓約書!AH3+2018,4,1)","v":"2024-04-01"}]
[]
["点検項目",null,null,null,"点　検　事　項",null,null,"点検結果","確認書類等","備　　考"]
[null,null,null,null,"着眼点","内　　　容　　　（説　　明）"]
["【共通事項】\n １　届出\n （児童福祉法第34条の12第1項）",null,null,null,"開始届を提出してるか","・【児童福祉法第34条の12①】　市町村、社会福祉法人その他の者は内閣府令の定めるところにより、あらかじめ、内閣府令で定める事項を都道府県知事に届け出て、一時預かり事業を行うことができる。",null,"　"]
[null,null,null,null,"変更が生じた場合、変更の日から1月以内に変更届を提出しているか。","・【法第34条の12②】　市町村、社会福祉法人その他の者は、前項の規定により届け出た事項に変更を生じたときは、変更の日から１月以内に、その旨を都道府県知事に届け出なければならない(単なる担当者変更は該当しない）。",null,"　"]
[" ２ 事業類型\n（該当する類型に○）\n　　↓",null,null,null,"事業内容は事業類型に適合しているか\n（該当する類型の点検結果をチェック）\n","（一般型）【規則第36条の35①（一）】\n・保育所等(保育所、幼稚園、認定こども園その他の場所）において、主として保育所等に通っていない、又は在籍していない乳幼児に対して一時預かり事業を行う場合（次の(二)（三）（四）号までに掲げる場合を除く。）",null,"－","当該施設の受入方針等より確認。"]
[]
[" 　　 　  \n  　　 　\n 　　  　\n","　",null,"一般型",null,"（余裕活用型）【規則第36条の35①（三）】\n・保育所、認定こども園又は家庭的保育事業等（居宅訪問型保育事業を除く。以下この号において同じ。）を行う事業所において、当該施設又は事業を利用する児童の数（以下この号において「利用児童数」という。）が当該施設又は事業に係る利用定員の総数に満たない場合であつて、当該利用定員の総数から当該利用児童数を除いた数の乳幼児を対象として一時預かり事業を行うとき",null,"－"]
[]
[null,"　",null,"余裕活用型"]
[]
[null,"　",null,"居宅訪問型",null," ( 居宅訪問型）【規則第36条の35①（四）】\n・乳幼児の居宅において一時預かり事業を行う場合",null,"－"]
[]
[null,null,null,null,null,"＜参考＞\n（幼稚園型）【規則第36条の35①（二）】\n・幼稚園等（幼稚園又は認定こども園）において、主として幼稚園等に在籍している満３歳以上の幼児に対して一時預かり事業を行う場合\n（※このチェックリストは、幼稚園型一時預かり事業者からの提出は想定していません）",null,"－"]
["３　市町からの受託(又は",null,null,null,"市町からの受託（又は補助）事業か","市町からの受託（又は補助）事業である場合は、法令及び国・市町の事業実施要綱に従って実施しているか。【令和６年３月30日付け５文科初第2592号・こ成保第191号通知｢一時預かり事業の実施について｣による一時預かり事業実施要綱】"]
["補助)→",null,null,"受　託"]
["４　利用料の徴収",null,null,null,"利用料の徴収は適正か","利用料が規程等に基づき徴収されており、徴収簿等が整備されているか。",null,"　"]
["５　事故対応",null,null,null,"対応は適切か","一時預かり事業を行う者は、当該事業の実施による事故の発生又はその再発の防止に努めているか。【規則第35条の35②】　"]
[null,null,null,null,null,"事故が発生した場合は、速やかに当該事実を都道府県知事に報告しているか。【規則第35条の35②】　"]
["６　感染症対応",null,null,null,"対応は適切か","感染症やその他の疾病の発生予防に努め、その発生や疑いがある場合には、必要に応じて市町村、保健所等に連絡し、その指示に従うとともに、保護者や全職員に連絡し協力を求める体制を取っているか。"]
[null,null,null,null,null,"衛生管理及び感染症対策は適切に行われているか。",null,"　"]
["７　非常災害対策",null,null,null,"対応は適切か","災害時情報共有システムの操作動画等を確認し、操作方法を把握しているか。"]
[null,null,null,null,null,"災害時情報共有システムからの連絡を受信する事業所メールアドレスを把握しているか。"]
[null,null,null,null,null,"被災状況報告の入力担当者を決めているか。"]
[null,null,null,null,null,"災害の発生により、物資の供給に支障が生じた場合に備え、入所者及び施設職員の最低でも３日間の生活に必要な食料及び飲料水、生活必需品並びに燃料等の備蓄しているか。"]
["8　福祉サービスの質の評価",null,null,null,"対応は適切か","福祉サービス第三者評価の受審等の福祉サービスの質の評価を行い、サービスの質の向上を図るための措置を講じているか。",null,"　",null,"（受審の有無：　\n受審年月：　年　月）"]
[" ８  一般型　※該当する類型の場合は記載してください。"]
["（１） 設備",null,null,null,"保育室等は基準に適合しているか","・児童福祉施設の設備及び運営に関する基準第３２条の規定に準じ、一般型一時預かり事業の対象とする乳幼児の年齢及び人数に応じて、必要な設備（医務室、調理室及び屋外遊戯場を除く。）を設けられているか。【規則第36条の35①（一）イ】",null,"－","基本情報シート"]
[null,null,null,null,"食事の提供を行う場合の設備は適切か","・食事の提供を行う場合(施設外で調理し運搬する方法により行う場合を含む。）においては、当該施設において行うことが必要な調理のための加熱、保存等の調理機能を有する設備を備えているか。【規則第36条の35①（一）ホ】",null,"－"]
["（２）人員配置",null,null,null,"①一時預かり事業専任の保育従事者か","一般型一時預かり事業の保育従事者は、事業実施時間中は専任となっていますか。【規則第36条の35①（一）ハ】",null,"－",null,"いいえの場合、専任者の配置が必要"]
[null,null,null,null,"②保育従事者は常時2名以上か","一般型一時預かり事業の保育従事者の人数は、原則、２人を下回ることはできません。【規則第36条の35①（一）ロ】",null,"－",null,"いいえの場合、(2)③を満たす必要あり"]
[null,null,null,null,"③上記②で「いいえ」の場合\n⇒右の要件をすべて満たしているか","一般型一時預かり事業の保育従事者の人数は、一定の条件を満たす場合に限り、１人とすることができますが、その場合、１人である保育従事者は原則、保育士でなければいけません。\n\n　＜例外＞事業を利用する乳幼児の人数が１日当たり平均３人以下である場合、家庭的保育者を保育士として扱うことができる。\n(※１日当たり平均の利用人数は、年間延べ利用乳幼児数を年間開所日数で除して得た数）\n【規則第36条の35①(一)ロ】",null,"－",null,"いいえの場合、保育士配置が必要。\n＜例外＞に該当すれば、家庭的保育者の配置可。"]
[null,null,null,null,"④保育士以外の保育従事者がいる場合は、研修を全員修了しているか","保育従事者が保育士１人であるときに事業を利用している乳幼児の人数は、保育士１人で処遇できる人数ですか。\n保育所の職員配置の基準(※)に準じた人数の保育従事者の配置が必要です。\n(0歳児　３：１以上、1,2歳児　６：１以上、3歳児　20：１以上、４歳以上30：１以上）【規則第36条の35①（一）ハ】\n※R6.4.1施行で、３歳児15：１以上、４歳以上25:１以上とする旨の基準改正あり。ただし、保育士及び保育従事者の配置の状況に鑑み保育の提供に支障を及ぼすおそれがあるときは、改正後の基準を適用せず、従前の基準が効力を有する旨の経過措置が置かれている（当分の間）。",null,"－",null,"いいえの場合、配置又は預かり人数の減が必要"]
[null,null,null,null,"⑤保育従事者の半数以上は保育士か。","一般型一時預かり事業と保育所等とが一体的に運営され、保育所等の保育従事者による支援を受けることができる体制であることが必要です。【規則第36条の35①（一）ハ】",null,"－",null,"いいえの場合、配置又は預かり人数の減が必要"]
["（２）人員配置",null,null,null,"④保育士以外の保育従事者がいる場合は、研修を全員修了しているか","保育従事者は、保育士又は市町村長等が行う研修を修了した者でなければいけません。【規則第36条の35①（一）ロ】\n＜研修＞\n①子育て支援員に係る所定の研修を修了した者\n②家庭的保育に係る所定の研修を修了した者　\n",null,"－",null,"いいえの場合、基準を満たす人員配置が必要"]
[null,null,null,null,"⑤保育従事者の半数以上は保育士か","保育従事者のうち半数以上は保育士でなければいけません。\n\n　＜例外＞事業を利用する乳幼児の人数が１日当たり平均３人以下である場合、家庭的保育者を保育士として扱うことができる。\n(※１日当たり平均の利用人数は、年間延べ利用乳幼児数を年間開所日数で除して得た数）\n【規則第36条の35①（一）ロ】",null,"－",null,"いいえの場合、基準を満たす人員配置が必要\n＜例外＞に該当すれば、家庭的保育者の配置可。"]
["（３）保育の内容",null,null,null,"保育所保育指針に沿っているか","・児童福祉施設の設備及び運営に関する基準第35条の規定に準じ、事業を実施しているか。【規則第36条の35①ニ】\n　　\n　＜運営基準第35条＞(保育の内容）保育所における保育は、養護及び教育を一体的に行うことをその特性とし、その内容については、厚生労働大臣が定める指針に従う。（＝保育所保育指針）\n　　",null,"－","基本情報シート"]
[" ９  余裕活用型　　※該当する類型の場合は記載してください。"]
["運営状況",null,null,null,"基準に沿って適切に運営しているか","余裕活用型一時預かりについては、以下の保育所、認定こども園、家庭的保育事業の基準に準じて行うこと。\n\n【児童福祉法施行規則第３６条の３５】\n三　保育所、認定こども園又は家庭的保育事業等（居宅訪問型保育事業を除く。以下この号において同じ。）を行う事業所において、当該施設又は事業を利用する児童の数（以下この号において「利用児童数」という。）が当該施設又は事業に係る利用定員の総数に満たない場合であつて、当該利用定員の総数から当該利用児童数を除いた数の乳幼児を対象として一時預かり事業を行うとき　次に掲げる施設又は事業所の区分に応じ、それぞれ次に定めるものに準じ、事業を実施すること。\nイ、ハ（略）\nニ　家庭的保育事業等を行う事業所　家庭的保育事業等の設備及び運営に関する基準（平成２６年厚生労働省令第６１号）（居宅訪問型保育事業に係るものを除く。）",null,"設備",null,"はいの場合、適合\nいいえの場合、施設全体としての基準に適合させること。"]
[null,null,null,null,null,null,null,"－"]
[null,null,null,null,null,null,null,"人員"]
[null,null,null,null,null,null,null,"－"]
[null,null,null,null,null,null,null,"運営"]
[null,null,null,null,null,null,null,"－"]